bitfinex-derivatives/quotes_SOLF0:USTF0_20250928
["timestamp","ask_amount","ask_price","bid_price","bid_amount"]
[1759079061500,7.88,204.09,204.03,8.03]
[1759079062006,9.60123306,204.13,204.06,8.03]
[1759079062613,9.60123306,204.13,204.05,4.4089]
[1759079064608,1.72123306,204.09,204.02,12.4396]
[1759079064808,8.05,204.08,204.02,12.4396]
[1759079067010,8.05,204.08,204.05,7.31]
[1759079067215,2.68975511,204.12,204.04,4.4093]
[1759079067216,8.05,204.11,204.04,4.4093]
[1759079070412,8.05,204.11,204.05,7.31]
[1759079071517,8.05,204.15,204.05,7.31]
[1759079072715,8.05,204.15,204.08,4.4083]
[1759079077116,8.05,204.15,204.09,11.7181]
[1759079077421,356.54,204.18,204.09,7.31]
[1759079078118,8.05,204.19,204.12,7.31]
[1759079080317,8.05,204.19,204.11,4.4076]
[1759079080625,8.05,204.14,204.05,7.31]
[1759079080823,10.73975511,204.14,204.05,7.31]
[1759079081919,8.05,204.14,204.05,7.31]
[1759079083625,8.05,204.14,204.08,4.4083]
[1759079084626,52.37,204.18,204.11,7.31]
[1759079086925,52.37,204.18,204.11,11.7177]
[1759079087928,8.05,204.18,204.12,4.4075]
[1759079088528,8.05,204.18,204.13,4.4072]
[1759079088734,8.05,204.18,204.14,7.31]
[1759079089229,8.05,204.22,204.15,7.31]
[1759079089425,3.39217743,204.21,204.15,7.31]
[1759079089620,8.05,204.22,204.15,7.31]
[1759079089832,3.39217825,204.21,204.15,11.7168]
[1759079090037,8.05,204.22,204.15,11.7168]
[1759079091029,8.05,204.23,204.15,4.4068]
[1759079091225,8.05,204.21,204.15,4.4068]
[1759079092631,8.05,204.25,204.16,7.31]
[1759079093429,7.37,204.26,204.16,11.7166]
[1759079093632,10.05975511,204.24,204.12,7.85]
[1759079093826,7.37,204.22,204.12,7.85]
[1759079094730,11.7755,204.22,204.14,4.407]
[1759079095130,11.7755,204.22,204.16,4.4066]
[1759079095131,7.37,204.22,204.16,4.4066]
[1759079095331,7.37,204.22,204.15,7.85]
[1759079096835,7.37,204.23,204.17,4.4064]
[1759079100136,7.37,204.23,204.16,7.85]
[1759079100137,11.7754,204.23,204.16,7.85]
[1759079100438,7.37,204.21,204.15,4.4069]
[1759079100739,7.37,204.21,204.12,7.85]
[1759079101430,2.68975511,204.22,204.08,7.85]
[1759079101431,7.37,204.18,204.08,7.85]
[1759079101738,7.37,204.15,204.04,7.85]
[1759079101940,4.4074,204.14,204.06,4.4088]
[1759079102138,7.37,204.13,204.06,4.4088]
[1759079102939,7.37,204.13,204.05,68.5871]
[1759079103236,7.37,204.13,204.06,7.85]
[1759079104030,7.37,204.13,204.08,4.4083]
[1759079104230,7.37,204.13,204.06,7.85]
[1759079105442,7.37,204.13,204.09,7.85]
[1759079105643,7.37,204.17,204.09,7.85]
[1759079105840,7.37,204.15,204.09,7.85]
[1759079107532,7.37,204.15,204.09,12.2581]
[1759079108847,7.37,204.15,204.11,12.2578]
[1759079109043,7.37,204.15,204.11,7.85]
[1759079109545,7.37,204.16,204.11,7.85]
[1759079110036,11.7766,204.17,204.11,7.85]
[1759079110244,7.37,204.17,204.11,7.85]
[1759079110747,7.37,204.17,204.11,12.2577]
[1759079111133,7.37,204.17,204.11,7.85]
[1759079111339,11.7657,204.21,204.14,7.37]
[1759079111541,3.38925055,204.2,204.14,7.37]
[1759079111845,10.74925055,204.19,204.15,7.37]
[1759079112145,7.36,204.19,204.14,4.407]
[1759079112447,7.36,204.19,204.15,7.37]
[1759079112846,7.36,204.22,204.15,7.37]
[1759079113144,3.38977293,204.21,204.15,7.37]
[1759079113335,10.74977293,204.2,204.15,7.37]
[1759079113539,7.36,204.2,204.15,7.37]
[1759079113734,3.39053672,204.19,204.11,7.37]
[1759079113943,2.68975511,204.23,204.11,7.37]
[1759079113944,10.75084906,204.18,204.11,7.37]
[1759079114142,7.36,204.18,204.12,4.4076]
[1759079114342,7.36,204.18,204.11,7.37]
[1759079114748,11.7665,204.18,204.11,7.37]
[1759079116046,68.5416,204.19,204.05,11.7791]
[1759079116249,7.36,204.14,204.05,7.37]
[1759079116545,3.39291773,204.13,204.05,7.37]
[1759079116740,51.98,204.19,204.07,7.37]
[1759079116943,3.39358655,204.18,204.07,7.37]
[1759079117149,3.39358655,204.17,204.07,7.37]
[1759079117344,3.39358655,204.16,204.07,7.37]
[1759079117644,4.4065,204.18,204.1,4.408]
[1759079117849,3.39363378,204.17,204.1,11.778]
[1759079118044,7.36,204.19,204.1,7.37]
[1759079118255,3.39349247,204.18,204.1,7.37]
[1759079118450,7.36,204.19,204.1,7.37]
[1759079118646,3.39364338,204.18,204.1,7.37]
[1759079118853,7.36,204.19,204.13,4.4072]
[1759079119051,3.39333495,204.18,204.14,7.37]
[1759079119250,11.7655,204.22,204.14,7.37]
[1759079119554,3.39344639,204.21,204.14,7.37]
[1759079119757,3.39344639,204.2,204.14,11.777]
[1759079119948,3.39344639,204.19,204.14,4.407]
[1759079120253,3.39344639,204.18,204.14,4.407]
[1759079120458,7.36,204.22,204.15,7.37]
[1759079120756,360.925,204.25,204.15,7.37]
[1759079120757,3.39321932,204.21,204.15,7.37]
[1759079121058,360.925,204.25,204.17,4.4065]
[1759079121059,3.39321932,204.2,204.17,4.4065]
[1759079121352,368.285,204.25,204.18,7.37]
[1759079121551,3.39268774,204.24,204.18,7.37]
[1759079121751,3.39268774,204.23,204.17,11.7765]
[1759079122050,3.39268774,204.22,204.17,4.4065]
[1759079122252,368.285,204.25,204.17,11.7765]
[1759079122454,3.39240328,204.24,204.17,11.7765]
[1759079122658,3.39240328,204.23,204.17,11.7765]
[1759079122858,368.285,204.25,204.17,11.7765]
[1759079123054,3.39209418,204.24,204.17,11.7765]
[1759079123259,3.39209418,204.23,204.17,11.7765]
[1759079123562,363.88,204.25,204.17,11.7765]
[1759079123858,3.39136325,204.24,204.17,11.7765]
[1759079124060,3.39136325,204.23,204.17,11.7765]
[1759079124261,363.88,204.25,204.17,11.7765]
[1759079124450,3.39059005,204.24,204.17,11.7765]
[1759079124656,363.88,204.25,204.17,11.7765]
[1759079124956,3.39059005,204.24,204.17,11.7765]
[1759079125162,7.36,204.25,204.18,4.4061]
[1759079125459,7.36,204.25,204.19,7.45]
[1759079126359,1.71868991,204.26,204.18,7.45]
[1759079126667,3.38907314,204.25,204.18,7.45]
[1759079126862,1.71868991,204.26,204.18,7.45]
[1759079127063,8.07,204.24,204.18,7.45]
[1759079128165,1.71868991,204.27,204.18,9.16868991]
[1759079128364,3.38910725,204.26,204.18,9.16868991]
[1759079128565,1.71868991,204.27,204.18,9.16868991]
[1759079128765,3.38827151,204.26,204.18,9.16868991]
[1759079129064,1.71868991,204.27,204.18,9.16868991]
[1759079129663,3.38785862,204.26,204.18,9.16868991]
[1759079129863,13.17654853,204.25,204.18,9.16868991]
[1759079130065,8.07,204.25,204.18,9.16868991]
[1759079130264,9.78868991,204.25,204.18,9.16868991]
[1759079132268,14.19368991,204.25,204.18,7.45]
[1759079132468,9.78868991,204.25,204.18,7.45]
[1759079132769,4.4052,204.24,204.18,7.45]
[1759079133466,1.71868991,204.23,204.12,7.45]
[1759079133659,1.71868991,204.2,204.12,7.45]
[1759079133864,9.78868991,204.2,204.12,7.45]
[1759079134267,4.4063,204.18,204.12,7.45]
[1759079135068,12.4763,204.18,204.12,7.45]
[1759079135462,14.19498991,204.18,204.12,7.45]
[1759079138475,9.78868991,204.23,204.14,1.71868991]
[1759079138672,8.07,204.23,204.16,1.71868991]
[1759079139369,8.07,204.23,204.15,11.8568]
[1759079139874,3.38194063,204.22,204.15,11.8568]
[1759079140074,12.4754,204.23,204.15,11.8568]
[1759079140274,3.3819423,204.22,204.15,11.8568]
[1759079140475,12.4754,204.23,204.15,11.8568]
[1759079140673,3.3818862,204.22,204.15,11.8568]
[1759079140874,12.4754,204.23,204.15,11.8568]
[1759079141073,3.3818862,204.22,204.15,11.8568]
[1759079141267,12.4754,204.23,204.15,11.8568]
[1759079141473,3.38184346,204.22,204.15,11.8568]
[1759079141674,12.4754,204.23,204.15,11.8568]
[1759079141874,12.4754,204.23,204.16,1.71868991]
[1759079142469,8.07,204.23,204.17,7.45]
[1759079144672,8.07,204.23,204.17,11.8563]
[1759079144877,98.7447,204.26,204.18,1.71868991]
[1759079145079,3.38104813,204.25,204.19,7.45]
[1759079145376,98.7447,204.26,204.19,7.45]
[1759079145572,3.38096268,204.25,204.19,7.45]
[1759079145874,4.4047,204.26,204.19,7.45]
[1759079146468,8.07,204.27,204.18,1.71868991]
[1759079146667,8.07,204.27,204.19,7.45]
[1759079147473,8.07,204.27,204.21,4.4057]
[1759079147673,8.07,204.27,204.21,11.8557]
[1759079148066,8.07,204.27,204.22,4.4053]
[1759079148276,56.17248991,204.3,204.22,4.4053]
[1759079148468,3.37982251,204.29,204.22,4.4053]
[1759079148672,3.37982251,204.28,204.22,4.4053]
[1759079148867,4.4041,204.29,204.22,4.4053]
[1759079149072,3.37982251,204.28,204.21,7.45]
[1759079149376,4.4041,204.29,204.21,7.45]
[1759079149567,3.37957191,204.28,204.21,7.45]
[1759079149767,4.4041,204.29,204.21,7.45]
[1759079149974,3.37957191,204.28,204.21,7.45]
[1759079150176,4.4041,204.29,204.21,7.45]
[1759079150372,3.37957191,204.28,204.21,7.45]
[1759079150573,12.4743,204.28,204.21,11.8555]
[1759079150777,14.19298991,204.28,204.21,7.45]
[1759079151376,3.38001891,204.27,204.21,7.45]
[1759079151679,14.19298991,204.28,204.21,7.45]
[1759079151874,3.38001872,204.27,204.21,7.45]
[1759079152082,14.19298991,204.28,204.21,7.45]
[1759079152379,3.38001872,204.27,204.21,7.45]
[1759079152576,8.07,204.28,204.21,7.45]
[1759079152780,8.07,204.28,204.22,1.71868991]
[1759079153073,6.12238991,204.31,204.23,7.45]
[1759079153278,3.37980042,204.3,204.23,7.45]
[1759079153581,6.12238991,204.31,204.23,7.45]
[1759079153879,7.67,204.33,204.25,8.0]
[1759079154076,3.37927194,204.32,204.25,8.0]
[1759079154273,9.38868991,204.33,204.25,8.0]
[1759079154480,3.37864822,204.32,204.25,8.0]
[1759079154681,9.38868991,204.33,204.25,8.0]
[1759079154884,3.37864822,204.32,204.25,8.0]
[1759079155175,9.38868991,204.33,204.25,8.0]
[1759079155377,3.37864822,204.32,204.25,8.0]
[1759079155585,9.38868991,204.33,204.25,12.4047]
[1759079155785,13.79198991,204.33,204.25,8.0]
[1759079156684,9.38868991,204.33,204.25,8.0]
[1759079157585,9.38868991,204.33,204.25,12.4046]
[1759079157982,1.71868991,204.35,204.27,8.0]
[1759079158586,6.12118991,204.36,204.27,12.4042]
[1759079158878,3.37505221,204.35,204.27,12.4042]
[1759079159082,6.12118991,204.36,204.27,12.4042]
[1759079159282,7.67,204.35,204.27,12.4042]
[1759079159475,7.67,204.35,204.27,14.12288991]
[1759079160079,4.4029,204.34,204.27,8.0]
[1759079160285,6.12158991,204.34,204.27,8.0]
[1759079161986,4.4029,204.34,204.27,8.0]
[1759079162282,9.38868991,204.39,204.31,8.0]
[1759079162484,7.67,204.39,204.32,1.71868991]
[1759079162681,7.67,204.39,204.33,8.0]
[1759079162886,1.71868991,204.41,204.33,8.0]
[1759079163080,7.67,204.42,204.34,1.71868991]
[1759079163288,7.67,204.42,204.35,8.0]
[1759079165590,12.0713,204.42,204.35,8.0]
[1759079165977,13.78998991,204.42,204.35,8.0]
[1759079168090,4.4016,204.41,204.35,8.0]
[1759079168286,6.12028991,204.41,204.35,8.0]
[1759079168484,4.4016,204.41,204.35,8.0]
[1759079168791,9.38868991,204.4,204.35,8.0]
[1759079169285,7.67,204.38,204.35,8.0]
[1759079169490,7.67,204.38,204.3,12.4037]
[1759079169690,1.71868991,204.37,204.3,12.4037]
[1759079170091,6.12098991,204.37,204.3,8.0]
[1759079170588,1.71868991,204.37,204.3,8.0]
[1759079171190,7.67,204.38,204.31,7.33]
[1759079172791,12.0722,204.38,204.31,7.33]
[1759079173693,1.71868991,204.37,204.31,7.33]
[1759079174192,12.0722,204.38,204.31,7.33]
[1759079174395,1.71868991,204.37,204.31,7.33]
[1759079175594,4.4022,204.38,204.31,7.33]
[1759079175991,4.4022,204.38,204.31,9.04868991]
[1759079176397,1.71868991,204.39,204.31,9.04868991]
[1759079176596,4.4016,204.4,204.31,9.04868991]
[1759079176996,7.75,204.41,204.34,7.33]
[1759079178394,1.71868991,204.42,204.34,7.33]
[1759079178697,4.4008,204.44,204.3,68.5031]
[1759079178698,13.86948991,204.44,204.36,7.33]
[1759079179795,13.86948991,204.44,204.36,11.7324]
[1759079180899,12.1508,204.44,204.36,11.7324]
[1759079181198,13.86948991,204.44,204.36,11.7324]
[1759079182091,13.86948991,204.44,204.37,4.4021]
[1759079182289,9.46868991,204.44,204.37,4.4021]
[1759079182797,9.46868991,204.44,204.38,7.33]
[1759079183300,9.46868991,204.44,204.38,11.7319]
[1759079183688,1.71868991,204.46,204.38,7.33]
[1759079183893,1.71868991,204.46,204.37,1.71868991]
[1759079183894,8.07,204.47,204.4,7.61]
[1759079184594,8.07,204.47,204.4,12.0114]
[1759079185597,1.71868991,204.46,204.4,7.61]
[1759079185900,9.78868991,204.46,204.38,12.012]
[1759079186405,8.07,204.46,204.38,12.012]
[1759079186795,8.07,204.46,204.38,7.61]
[1759079187298,4.4007,204.45,204.38,7.61]
[1759079189504,8.07,204.46,204.38,12.0118]
[1759079189799,10.75015768,204.51,204.39,7.61]
[1759079189998,8.07,204.51,204.39,7.61]
[1759079190301,8.07,204.51,204.44,12.0106]
[1759079191405,8.07,204.51,204.44,7.61]
[1759079192102,12.4698,204.49,204.44,7.61]
[1759079192301,8.07,204.48,204.44,7.61]
[1759079193502,8.07,204.51,204.43,12.0108]
[1759079194995,5.45095658,204.61,204.55,68.4193]
[1759079195199,15.22,204.73,204.61,7.61]
[1759079195397,8.07,204.74,204.65,7.61]
[1759079195599,82.44,204.8,204.68,7.61]
[1759079195801,105.34,204.8,204.7,7.61]
[1759079195995,8.07,204.83,204.71,4.17804538]
[1759079196196,8.07,204.83,204.72,4.17804538]
[1759079196400,8.07,204.83,204.73,4.17804538]
[1759079196706,8.07,204.83,204.74,6.85820306]
[1759079196901,121.64,204.88,204.78,7.61]
[1759079197108,8.07,204.87,204.79,4.17804538]
[1759079197296,8.07,204.87,204.8,4.17804538]
[1759079197498,8.07,204.87,204.73,7.61]
[1759079197694,68.3065,204.89,204.7,15.35541815]
[1759079197902,2.68015768,204.83,204.7,15.35541815]
[1759079198105,8.07,204.81,204.7,15.35541815]
[1759079198310,8.07,204.81,204.71,83.05035768]
[1759079198701,8.07,204.81,204.71,12.0048]
[1759079198902,8.07,204.9,204.79,7.61]
[1759079199309,8.07,204.9,204.79,83.02225768]
[1759079199608,1.96801259,204.9,204.8,5.00302111]
[1759079199807,2.68015768,204.94,204.81,5.00302111]
[1759079200002,2.68015768,204.94,204.82,9.39552111]
[1759079200204,4.3893,204.98,204.83,5.00302111]
[1759079200510,129.15139531,204.99,204.82,7.61]
[1759079201406,72.6512,205.02,204.86,7.61]
[1759079201914,8.07,205.01,204.86,7.61]
[1759079202408,8.07,205.01,204.87,4.3914]
[1759079202710,8.07,205.01,204.88,7.61]
[1759079203103,8.07,205.01,204.9,7.61]
[1759079203304,8.07,205.08,204.92,7.61]
[1759079203505,8.07,205.08,204.94,7.61]
[1759079204607,2.00117078,205.11,205.0,7.61]
[1759079205614,8.07,205.24,205.09,7.61]
[1759079205802,8.07,205.31,205.17,75.41959597]
[1759079206007,68.16,205.33,205.19,7.61]
[1759079206205,8.07,205.32,205.19,7.61]
[1759079206407,68.1832,205.26,205.12,7.61]
[1759079206612,8.07,205.25,205.12,7.61]
[1759079206907,68.2094,205.18,205.06,30.86]
[1759079207110,68.2227,205.14,205.03,0.69648009]
[1759079207310,76.2733,205.2,205.06,7.61]
[1759079207514,68.2138,205.17,205.06,7.61]
[1759079207708,76.2733,205.2,205.06,7.61]
[1759079207914,127.0,205.18,205.06,7.61]
[1759079208410,68.2242,205.14,204.99,7.61]
[1759079208611,8.07,205.15,204.99,7.61]
[1759079209210,8.07,205.15,205.01,7.61]
[1759079209510,80.6763,205.15,205.01,7.61]
[1759079209815,8.07,205.15,205.01,7.61]
[1759079210011,68.2033,205.2,205.03,68.2588]
[1759079210012,8.07,205.2,205.03,68.2588]
[1759079210211,68.1882,205.25,205.1,7.61]
[1759079210212,8.07,205.25,205.1,7.61]
[1759079210412,8.07,205.32,205.13,68.2257]
[1759079210619,8.07,205.32,205.14,7.61]
[1759079211015,76.2335,205.32,205.14,7.61]
[1759079211314,76.2145,205.38,205.19,68.2057]
[1759079211513,8.07,205.38,205.23,68.1923]
[1759079211712,8.07,205.38,205.24,7.61]
[1759079213016,80.5934,205.38,205.24,7.61]
[1759079213312,12.4506,205.38,205.24,7.61]
[1759079213513,8.07,205.38,205.24,7.61]
[1759079213916,190.65782908,205.42,205.24,7.61]
[1759079214221,12.48792908,205.42,205.31,14.71]
[1759079214410,12.48792908,205.42,205.33,8.0]
[1759079214720,68.1329,205.41,205.29,127.56]
[1759079214924,20.40792908,205.42,205.29,127.56]
[1759079215114,88.53922908,205.42,205.29,127.56]
[1759079215310,68.1496,205.36,205.22,8.0]
[1759079215608,203.7662,205.37,205.22,8.0]
[1759079215813,80.465,205.32,205.18,98.92]
[1759079216009,80.465,205.32,205.18,106.92]
[1759079216420,68.1765,205.28,205.18,106.92]
[1759079216620,76.0965,205.28,205.18,106.92]
[1759079217119,68.1832,205.26,205.11,135.68]
[1759079217316,68.1904,205.24,205.11,135.68]
[1759079217617,7.92,205.2,205.05,8.0]
[1759079218714,80.5072,205.2,205.05,8.0]
[1759079218910,12.3046,205.2,205.05,8.0]
[1759079219316,80.5074,205.2,205.05,8.0]
[1759079219718,4.3849,205.18,205.05,8.0]
[1759079220317,4.3853,205.16,205.03,0.69602353]
[1759079220511,68.2359,205.1,204.94,15.20729597]
[1759079220712,76.1699,205.06,204.89,112.74729597]
[1759079221021,7.92,205.06,204.89,181.05299597]
[1759079221215,76.1697,205.06,204.89,112.74729597]
[1759079221415,7.92,205.06,204.89,181.05249597]
[1759079221617,61.92,205.05,204.91,68.297]
[1759079221812,61.92,205.05,204.92,8.0]
[1759079222018,7.92,205.06,204.92,8.0]
[1759079222220,44.72,205.05,204.92,8.0]
[1759079222818,4.3879,205.04,204.92,8.0]
[1759079223017,7.92,205.06,204.92,8.0]
[1759079223214,7.92,205.06,204.95,68.2851]
[1759079224112,7.92,205.06,204.97,68.2787]
[1759079224316,7.92,205.13,204.97,68.2787]
[1759079224513,76.2,205.12,204.97,68.2787]
[1759079224812,7.92,205.13,204.97,68.2787]
[1759079225014,7.92,205.13,204.98,68.2745]
[1759079225312,7.92,205.13,205.0,8.0]
[1759079225726,7.92,205.13,205.02,68.2624]
[1759079226017,21.0,205.19,205.03,8.0]
[1759079226212,21.0,205.19,205.03,80.6468]
[1759079226414,7.20729597,205.23,204.99,7.20729597]
[1759079226415,7.92,205.28,205.1,68.2342]
[1759079226618,7.92,205.28,205.09,76.2388]
[1759079226820,76.1032,205.26,205.09,8.0]
[1759079227021,7.92,205.26,205.09,8.0]
[1759079227219,90.7,205.25,205.09,8.0]
[1759079227524,90.7,205.25,205.06,42.52]
[1759079227525,7.92,205.21,205.06,42.52]
[1759079227825,7.92,205.2,205.06,42.52]
[1759079228022,7.92,205.2,205.08,68.2411]
[1759079228216,7.92,205.2,205.07,8.0]
[1759079228413,7.92,205.2,205.07,76.2456]
[1759079228612,7.92,205.2,205.08,68.2422]
[1759079229722,7.92,205.2,205.07,8.0]
[1759079230929,7.92,205.25,205.1,7.71]
[1759079231128,7.92,205.25,205.13,7.71]
[1759079231519,7.92,205.25,205.13,80.3209]
[1759079232122,53.0022,205.31,205.15,4.3853]
[1759079232326,7.82,205.3,205.15,4.3853]
[1759079232527,7.82,205.3,205.16,7.71]
[1759079232824,75.9963,205.28,205.1,7.71]
[1759079233022,7.82,205.28,205.12,7.71]
[1759079233220,7.82,205.28,205.14,4.3855]
[1759079233726,12.2028,205.28,205.12,7.71]
[1759079236328,4.3833,205.26,205.12,7.71]
[1759079236534,68.1799,205.27,205.08,92.8469]
[1759079237034,7.82,205.23,205.08,88.46]
[1759079237333,7.82,205.24,205.08,88.46]
[1759079237730,68.1899,205.24,205.08,88.46]
[1759079238227,135.88,205.23,205.08,88.46]
[1759079238445,196.2533,205.23,205.08,88.46]
[1759079238643,7.82,205.21,205.08,88.46]
[1759079238945,68.1971,205.22,205.05,7.71]
[1759079238946,7.82,205.17,205.05,7.71]
[1759079239839,12.2051,205.17,205.05,7.71]
[1759079240246,7.82,205.17,205.06,68.2468]
[1759079240648,7.82,205.17,205.05,7.71]
[1759079243846,7.82,205.17,205.06,4.3873]
[1759079244249,7.82,205.17,205.05,7.71]
[1759079245449,4.3856,205.15,205.05,12.0976]
[1759079246147,4.386,205.13,205.03,0.66995974]
[1759079246347,7.54,205.19,205.05,68.2511]
[1759079246540,7.54,205.19,205.06,7.66]
[1759079247145,135.32,205.19,205.06,7.66]
[1759079247349,7.20729597,205.25,205.06,7.66]
[1759079247540,7.20729597,205.25,205.05,68.2511]
[1759079247541,42.64,205.24,205.12,7.66]
[1759079247953,4.3842,205.21,205.12,7.66]
[1759079248153,7.54,205.23,205.08,4.3868]
[1759079248455,7.54,205.23,205.09,68.2387]
[1759079248456,124.66,205.22,205.09,68.2387]
[1759079248647,124.66,205.22,205.1,7.66]
[1759079248955,11.9238,205.23,205.12,4.3861]
[1759079249153,139.7438,205.23,205.12,4.3861]
[1759079249448,11.9238,205.23,205.12,4.3861]
[1759079250451,8.9002291,205.26,205.14,7.66]
[1759079251047,12.54110534,205.28,205.16,68.2139]
[1759079251248,8.02417624,205.28,205.17,7.66]
[1759079251558,4.5169291,205.32,205.2,7.66]
[1759079251857,7.54,205.4,205.27,75.8379]
[1759079252557,75.6767,205.4,205.27,7.66]
[1759079252857,12.48792908,205.42,205.3,7.66]
[1759079253045,12.48792908,205.42,205.31,4.382]
[1759079253856,12.48792908,205.42,205.3,7.66]
[1759079253857,7.54,205.4,205.3,7.66]
[1759079254050,7.54,205.4,205.23,7.66]
[1759079254357,7.54,205.4,205.27,4.3828]
[1759079254857,11.9202,205.4,205.27,4.3828]
[1759079255051,75.6766,205.4,205.26,7.66]
[1759079255251,68.1401,205.39,205.26,7.66]
[1759079256255,7.54,205.37,205.26,7.66]
[1759079256458,68.1499,205.36,205.22,125.36]
[1759079256747,4.3819,205.32,205.22,125.36]
[1759079256951,7.54,205.34,205.22,125.36]
[1759079257355,7.54,205.34,205.22,129.7439]
[1759079257857,4.3817,205.33,205.22,125.36]
[1759079258156,68.1629,205.32,205.22,125.36]
[1759079258355,4.3822,205.31,205.21,7.66]
[1759079258552,68.1696,205.3,205.21,7.66]
[1759079258753,12.0569291,205.31,205.14,7.66]
[1759079258955,12.0569291,205.31,205.14,75.8825]
[1759079259155,7.54,205.31,205.14,75.8825]
[1759079259459,4.3828,205.28,205.15,4.3854]
[1759079259657,4.3828,205.28,205.14,7.66]
[1759079259658,7.54,205.27,205.14,7.66]
[1759079259854,7.54,205.27,205.14,12.0456]
[1759079261151,12.0569291,205.27,205.14,7.66]
[1759079261659,4.3834,205.25,205.14,7.66]
[1759079262055,195.8234,205.26,205.14,7.66]
[1759079262360,7.54,205.25,205.14,7.66]
[1759079262658,135.14,205.25,205.14,7.66]
[1759079262860,135.12,205.25,205.14,7.66]
[1759079263057,4.3836,205.24,205.14,7.66]
[1759079263455,4.3836,205.24,205.09,7.66]
[1759079263456,68.1895,205.24,205.09,7.66]
[1759079263661,7.54,205.23,205.09,7.66]
[1759079263965,4.384,205.22,205.09,7.66]
[1759079265465,131.964,205.22,205.09,7.66]
[1759079265666,131.964,205.22,205.1,4.3865]
[1759079266464,11.9245,205.2,205.09,7.66]
[1759079266862,139.3845,205.2,205.09,7.66]
[1759079267061,4.3849,205.18,205.09,7.66]
[1759079271468,7.54,205.16,205.04,77.8077]
[1759079271668,7.54,205.16,205.04,12.0477]
[1759079272067,4.3857,205.14,205.04,12.0477]
[1759079272263,7.54,205.13,205.04,7.66]
[1759079272562,127.08,205.12,204.97,75.9388]
[1759079272766,4.3865,205.11,204.98,7.66]
[1759079273167,4.3868,205.09,204.98,7.66]
[1759079273371,11.9268,205.09,204.98,7.66]
[1759079274070,127.04,205.08,204.98,7.66]
[1759079274371,7.54,205.09,204.99,4.3889]
[1759079274572,134.56,205.09,204.99,4.3889]
[1759079275462,134.54,205.09,204.98,7.66]
[1759079275773,7.89,205.06,204.94,7.5]
[1759079276264,126.94,205.05,204.94,7.5]
[1759079276471,4.3878,205.04,204.94,7.5]
[1759079276871,7.89,205.06,204.94,7.5]
[1759079277169,7.89,205.04,204.94,7.5]
[1759079277672,4.3885,205.01,204.94,7.5]
[1759079277972,7.89,205.04,204.94,7.5]
[1759079278569,7.89,205.04,204.97,4.3893]
[1759079278868,8.9042291,205.07,204.97,4.3893]
[1759079279066,116.86,205.06,204.97,4.3893]
[1759079280074,12.2778,205.05,204.94,11.8899]
[1759079280271,185.1094,205.06,204.94,11.8899]
[1759079280473,7.89,205.05,204.94,11.8899]